bitfinex/quotes_SOLUSD_20250306
["timestamp","ask_amount","ask_price","bid_price","bid_amount"]
[1741227288259,6.6333,149.14,149.12,0.033]
[1741227290146,0.38440886,149.13,149.12,0.033]
[1741227290466,6.6333,149.14,149.12,0.033]
[1741227290763,6.6333,149.14,149.1,0.033]
[1741227291560,0.38440886,149.13,149.1,0.033]
[1741227292455,7.01770886,149.14,149.1,0.033]
[1741227292831,6.6333,149.14,149.1,0.033]
[1741227293861,6.6333,149.14,149.1,312.033]
[1741227294477,6.6333,149.14,149.1,0.033]
[1741227295968,20.0,149.11,149.1,0.033]
[1741227296948,20.0,149.11,149.03,0.14216157]
[1741227297550,20.0,149.11,149.04,312.0]
[1741227298673,0.38440886,149.1,149.0,1.8647]
[1741227298975,0.38440886,149.1,148.98,18.79181043]
[1741227299172,0.38440886,149.1,148.97,119.813]
[1741227299173,0.42648471,149.09,148.97,119.813]
[1741227299478,0.38440886,149.08,148.97,119.813]
[1741227299649,0.38440886,149.08,148.98,0.14216157]
[1741227299856,6.4132,149.07,148.98,0.14216157]
[1741227300047,0.38440886,149.06,148.98,0.14216157]
[1741227300246,20.0,149.04,148.97,119.813]
[1741227301048,20.0,149.04,148.98,0.14216157]
[1741227301680,6.79760886,149.07,149.02,312.0]
[1741227301979,80.8,149.06,148.98,81.44216157]
[1741227302151,6.4132,149.07,148.99,18.64964886]
[1741227302659,6.4132,149.07,149.0,0.14216157]
[1741227303069,6.4132,149.07,149.0,18.79181043]
[1741227303283,6.79760886,149.07,148.99,81.3]
[1741227303481,20.0,149.04,148.99,81.3]
[1741227303955,20.0,149.04,148.98,18.64964886]
[1741227304161,20.0,149.04,148.99,0.14216157]
[1741227304871,20.0,149.04,149.0,312.0]
[1741227305259,20.0,149.04,148.98,0.14216157]
[1741227305855,20.0,149.04,148.97,119.813]
[1741227306379,20.0,149.04,148.97,0.033]
[1741227306380,91.60432582,149.03,148.97,0.033]
[1741227306554,80.8,149.02,148.97,0.033]
[1741227306759,0.38440886,149.01,148.97,0.033]
[1741227307079,87.2256,149.0,148.96,0.033]
[1741227307268,81.18440886,148.99,148.96,0.033]
[1741227307467,20.0,148.97,148.96,0.033]
[1741227307670,20.0,148.95,148.89,0.03]
[1741227308362,0.38440886,148.97,148.89,312.03]
[1741227308363,20.0,148.94,148.89,312.03]
[1741227309267,80.8,148.97,148.89,0.17216157]
[1741227309459,6.4256,149.0,148.89,0.17216157]
[1741227309460,6.81000886,149.0,148.89,0.17216157]
[1741227309860,6.4256,149.0,148.91,0.14216157]
[1741227310383,20.0,148.97,148.89,0.03]
[1741227310576,20.0,148.96,148.89,0.17216157]
[1741227311089,20.0,148.96,148.89,18.82181043]
[1741227311583,80.8,148.99,148.89,20.23161557]
[1741227311764,80.8,148.99,148.9,26.71967744]
[1741227311969,1.7065,149.03,148.93,0.14216157]
[1741227312283,85.38355321,149.04,148.97,312.0]
[1741227312473,85.38355321,149.04,148.93,0.14216157]
[1741227312787,80.8,149.03,148.93,0.14216157]
[1741227312959,0.38440886,149.02,148.93,0.14216157]
[1741227313364,0.38440886,149.02,148.92,0.14216157]
[1741227313568,80.8,149.01,148.89,81.33]
[1741227313768,81.18440886,149.0,148.89,81.33]
[1741227313969,81.18440886,149.0,148.93,0.03]
[1741227314171,80.8,148.99,148.93,0.03]
[1741227314486,20.0,148.95,148.93,0.03]
[1741227314662,6.54635116,149.03,148.93,0.03]
[1741227314663,20.38440886,148.94,148.93,0.03]
[1741227315168,20.0,148.92,148.89,0.03]
[1741227315369,80.8,148.95,148.89,0.03]
[1741227315568,1.7389,148.99,148.9,0.14216157]
[1741227315876,81.18440886,148.99,148.9,0.14216157]
[1741227316385,81.18440886,148.99,148.9,18.79181043]
[1741227317273,20.0,148.96,148.9,18.79181043]
[1741227317787,80.8,148.99,148.9,25.50761043]
[1741227318102,20.0,148.97,148.9,100.09181043]
[1741227318573,20.0,148.97,148.9,81.3]
[1741227318985,20.0,148.96,148.9,312.0]
[1741227319292,20.0,148.96,148.91,18.79181043]
[1741227319469,80.8,148.99,148.91,18.79181043]
[1741227319783,80.8,148.99,148.91,0.14216157]
[1741227320462,6.217,149.04,148.93,0.28432314]
[1741227320665,80.8,149.07,148.95,27.00400058]
[1741227320862,0.38440886,149.06,148.95,81.44216157]
[1741227321093,20.0,149.02,148.94,0.14216157]
[1741227321387,0.38440886,149.01,148.91,1.8201]
[1741227321698,20.0,148.98,148.93,0.14216157]
[1741227322060,0.38440886,148.97,148.89,81.33]
[1741227322266,0.38440886,148.97,148.89,0.03]
[1741227322690,0.38440886,148.97,148.89,312.03]
[1741227323081,81.22648471,148.96,148.89,0.03]
[1741227323273,0.38440886,148.95,148.89,0.03]
[1741227323796,80.8,148.96,148.89,0.03]
[1741227323960,80.8,149.02,148.9,0.14216157]
[1741227324166,0.38440886,149.01,148.92,0.14216157]
[1741227324786,0.14216157,148.99,148.9,81.3]
[1741227324989,0.14216157,148.99,148.89,0.03]
[1741227324990,0.14216157,148.96,148.89,0.03]
[1741227325200,101.18440886,148.95,148.89,0.03]
[1741227326085,20.0,148.91,148.89,0.03]
[1741227326791,81.18440886,149.0,148.89,45.54148787]
[1741227327106,15.92903873,149.03,148.92,27.28832372]
[1741227327107,0.38440886,149.02,148.92,27.28832372]
[1741227327274,80.8,149.05,148.96,18.79181043]
[1741227327473,20.033,149.02,148.96,18.79181043]
[1741227328295,0.033,149.02,148.96,18.79181043]
[1741227328677,0.033,149.02,148.98,18.79181043]
[1741227329666,0.033,149.02,149.01,18.79181043]
[1741227330085,80.8,149.15,149.03,18.79181043]
[1741227330269,6.71540886,149.16,149.05,45.51148787]
[1741227330467,0.033,149.16,149.07,18.79181043]
[1741227330680,20.0,149.15,149.07,0.14216157]
[1741227330972,0.033,149.16,149.05,46.91999683]
[1741227331290,0.033,149.16,149.07,18.79181043]
[1741227331816,0.033,149.16,149.09,18.79181043]
[1741227332799,0.033,149.16,149.06,0.42648471]
[1741227333312,0.033,149.16,149.11,0.14216157]
[1741227333818,0.033,149.16,149.11,18.79181043]
[1741227333997,0.033,149.16,149.11,0.14216157]
[1741227335015,0.033,149.16,149.11,18.79181043]
[1741227335539,0.033,149.16,149.1,18.79181043]
[1741227335690,0.033,149.16,149.1,0.14216157]
[1741227336100,0.033,149.16,149.07,18.64964886]
[1741227336297,0.41740886,149.16,149.05,134.5]
[1741227336515,0.41740886,149.16,149.06,18.79181043]
[1741227336906,0.033,149.16,149.06,18.64964886]
[1741227337103,0.033,149.16,149.06,46.77744724]
[1741227337403,0.033,149.16,149.07,0.14216157]
[1741227337599,0.41740886,149.16,149.07,0.14216157]
[1741227337816,0.41740886,149.16,149.04,6.98]
[1741227338207,0.41740886,149.16,149.06,0.14216157]
[1741227338535,7.07528471,149.15,149.05,312.0]
[1741227338742,0.38440886,149.14,149.05,312.0]
[1741227339233,81.22648471,149.13,149.01,143.2893]
[1741227339543,0.38440886,149.12,149.02,18.79181043]
[1741227339842,20.0,149.1,149.02,18.79181043]
[1741227340018,0.38440886,149.09,149.02,18.64964886]
[1741227340214,20.0,149.1,149.03,0.14216157]
[1741227340405,20.0,149.1,149.02,0.03]
[1741227340606,0.38440886,149.09,149.02,0.03]
[1741227340827,20.0,149.1,149.02,18.67964886]
[1741227341031,100.8,149.1,149.02,18.67964886]
[1741227341353,20.0,149.09,149.03,0.14216157]
[1741227342142,20.0,149.09,149.05,0.14216157]
[1741227342637,20.0,149.09,149.02,81.33]
[1741227342821,20.0,149.09,149.03,0.14216157]
[1741227343314,20.0,149.09,149.03,18.79181043]
[1741227343839,81.18440886,149.11,149.02,0.03]
[1741227344025,0.38440886,149.08,149.02,0.03]
[1741227346560,80.8,149.07,149.02,0.03]
[1741227346727,0.38440886,149.09,149.02,0.03]
[1741227346929,80.8,149.08,149.02,0.03]
[1741227347364,20.0,149.05,149.02,0.03]
[1741227347658,80.8,149.08,149.02,0.03]
[1741227348054,1.17303966,149.13,149.02,0.03]
[1741227348055,80.8,149.12,149.02,0.03]
[1741227348261,20.0,149.08,149.03,18.79181043]
[1741227349136,20.0,149.08,149.05,0.14216157]
[1741227349456,20.0,149.08,149.03,0.14216157]
[1741227350767,20.0,149.08,149.02,81.33]
[1741227351337,0.38440886,149.07,149.02,81.33]
[1741227351545,81.18440886,149.07,149.02,0.03]
[1741227351762,87.61740886,149.07,149.02,0.03]
[1741227352271,81.22648471,149.06,149.02,0.03]
[1741227352476,0.42648471,149.04,148.92,514.7781]
[1741227352793,0.42648471,149.02,148.92,121.4781]
[1741227352936,0.42648471,149.0,148.92,121.4781]
[1741227353140,81.18440886,148.99,148.92,121.4781]
[1741227353961,81.18440886,148.99,148.89,18.67964886]
[1741227354173,6.3169,148.98,148.89,18.67964886]
[1741227354383,0.38440886,148.97,148.89,18.67964886]
[1741227354541,81.18440886,148.97,148.89,18.67964886]
[1741227354743,81.18440886,148.97,148.9,0.17216157]
[1741227354953,80.8,148.97,148.9,0.03]
[1741227355756,80.8,148.97,148.91,0.14216157]
[1741227356456,80.8,148.97,148.9,0.03]
[1741227356780,80.8,148.97,148.91,18.79181043]
[1741227357071,80.8,149.01,148.91,0.14216157]
[1741227357284,20.0,148.98,148.91,18.79181043]
[1741227357447,81.18440886,149.0,148.91,100.09181043]
[1741227358263,86.59854466,149.0,148.91,100.09181043]
[1741227359583,86.59854466,149.0,148.93,312.0]
[1741227359967,80.8,149.03,148.94,18.79181043]
[1741227360288,81.18440886,149.05,148.94,45.51148787]
[1741227360477,86.71082185,149.05,148.94,18.79181043]
[1741227360847,80.8,149.08,148.98,45.51148787]
[1741227361047,0.033,149.09,149.03,18.79181043]
[1741227361269,0.033,149.09,149.05,0.14216157]
[1741227361679,0.033,149.09,149.02,0.14216157]
[1741227361864,0.033,149.09,149.0,0.14216157]
[1741227362283,0.28432314,149.07,148.95,6.0336]
[1741227362462,0.42648471,149.05,148.91,6.0336]
[1741227362805,81.18440886,149.04,148.91,6.0336]
[1741227362995,81.18440886,149.04,148.92,0.14216157]
[1741227363186,72.53584722,149.04,148.92,18.64964886]
[1741227363575,20.0,149.01,148.93,0.14216157]
[1741227363796,20.38440886,149.0,148.91,318.0336]
[1741227364190,20.38440886,149.0,148.93,0.14216157]
[1741227364695,20.38440886,149.0,148.91,6.0336]
[1741227364861,20.38440886,149.0,148.92,0.14216157]
[1741227365062,20.0,148.99,148.9,0.03]
[1741227365377,20.38440886,148.98,148.9,0.03]
[1741227365773,20.38440886,148.98,148.9,18.67964886]
[1741227366084,0.38440886,149.0,148.91,0.14216157]
[1741227366259,0.38440886,149.03,148.93,0.14216157]
[1741227366463,20.0,149.01,148.93,0.14216157]
[1741227366662,0.38440886,149.0,148.9,0.17216157]
[1741227366986,0.38440886,149.0,148.9,18.82181043]
[1741227367296,20.0,149.01,148.92,312.14216157]
[1741227367587,0.38440886,149.0,148.92,312.14216157]
[1741227367802,0.14216157,148.99,148.9,0.03]
[1741227368097,0.38440886,148.98,148.9,0.03]
[1741227368268,0.42648471,148.97,148.9,0.03]
[1741227368586,72.53584722,148.96,148.9,0.03]
[1741227369200,72.29359993,148.95,148.9,0.03]
[1741227369374,0.38440886,148.94,148.9,0.03]
[1741227369776,72.29359993,148.93,148.9,0.03]
[1741227369999,0.38440886,148.92,148.9,0.03]
[1741227370400,5.78957887,148.92,148.9,0.03]
[1741227370585,5.78957887,148.92,148.89,0.03]
[1741227370586,72.29359993,148.91,148.89,0.03]
[1741227370907,72.67800879,148.9,148.87,0.03]
[1741227371104,72.53584722,148.9,148.87,0.03]
[1741227371305,72.15143836,148.9,148.87,0.03]
[1741227371693,0.38440886,148.89,148.87,0.03]
[1741227372084,20.0,148.88,148.87,0.03]
[1741227372500,72.53584722,148.89,148.87,0.03]
[1741227373787,20.0,148.86,148.81,0.033]
[1741227373988,20.0,148.84,148.81,0.033]
[1741227374190,20.38440886,148.83,148.81,0.033]
[1741227375006,0.14216157,148.82,148.78,0.03]
[1741227375224,0.38440886,148.81,148.78,0.03]
[1741227376101,92.15143836,148.83,148.78,0.03]
[1741227376278,72.53584722,148.88,148.78,0.03]
[1741227376479,10.54936598,148.85,148.75,22.48675045]
[1741227376709,10.54936598,148.85,148.75,26.71967744]
[1741227376884,10.54936598,148.85,148.74,26.86183901]
[1741227377084,10.54936598,148.85,148.78,312.0]
[1741227377085,0.38440886,148.84,148.78,312.0]
[1741227377395,0.38440886,148.84,148.74,215.8]
[1741227377396,10.54936598,148.82,148.74,0.03]
[1741227377599,72.53584722,148.81,148.74,0.03]
[1741227378610,91.22757193,148.8,148.74,0.03]
[1741227378807,0.42648471,148.78,148.74,0.03]
[1741227378987,0.38440886,148.77,148.74,0.03]
[1741227379687,0.42648471,148.75,148.74,0.03]
[1741227379888,20.42648471,148.73,148.72,0.03]
[1741227380097,20.42648471,148.73,148.71,0.03]
[1741227380290,20.38440886,148.72,148.71,0.03]
[1741227380623,20.0,148.71,148.61,13.3336]
[1741227380823,20.0,148.67,148.61,13.3336]
[1741227381179,0.38440886,148.66,148.61,0.03]
[1741227381684,20.0,148.67,148.61,0.03]
[1741227381907,20.0,148.67,148.61,26.74967744]
[1741227382090,72.15143836,148.7,148.63,26.71967744]
[1741227382288,0.38440886,148.72,148.63,0.14216157]
[1741227382501,20.0,148.7,148.61,215.83]
[1741227382836,0.38440886,148.69,148.61,215.83]
[1741227383122,20.0,148.65,148.61,0.03]
[1741227383407,72.15143836,148.66,148.61,0.03]
[1741227383990,72.15143836,148.7,148.61,0.03]
[1741227384207,6.1548,148.73,148.62,45.51148787]
[1741227384417,0.38440886,148.72,148.62,45.51148787]
[1741227384738,0.42648471,148.71,148.62,0.14216157]
[1741227384902,0.38440886,148.7,148.62,0.14216157]
[1741227385107,72.53584722,148.7,148.63,0.14216157]
[1741227385322,72.15143836,148.7,148.63,0.14216157]
[1741227385827,72.53584722,148.73,148.64,0.14216157]
[1741227386035,72.15143836,148.73,148.66,26.86183901]
[1741227386206,0.38440886,148.76,148.68,0.14216157]
[1741227386528,0.38440886,148.77,148.68,0.14216157]
[1741227386826,72.15143836,148.78,148.68,26.86183901]
[1741227387331,0.38440886,148.84,148.74,0.14216157]
[1741227387851,5.82334643,148.84,148.74,0.14216157]
[1741227388126,20.0,148.8,148.68,26.71967744]
[1741227388422,20.38440886,148.79,148.69,18.79181043]
[1741227388632,20.38440886,148.79,148.72,0.14216157]
[1741227389007,20.0,148.78,148.66,140.91]
[1741227389203,92.15143836,148.78,148.74,0.03]
[1741227389532,20.0,148.8,148.74,0.03]
[1741227389830,0.38440886,148.79,148.74,0.03]
[1741227390824,0.42648471,148.78,148.74,0.03]
[1741227391012,0.38440886,148.77,148.74,0.03]
[1741227391215,72.53584722,148.79,148.74,0.03]
[1741227391412,0.38440886,148.78,148.74,0.03]
[1741227391813,0.38440886,148.78,148.67,0.14216157]
[1741227392109,0.38440886,148.78,148.68,312.0]
[1741227392110,72.57792307,148.77,148.68,312.0]
[1741227392317,0.42648471,148.75,148.65,1.6592]
[1741227392518,72.53584722,148.74,148.66,0.14216157]
[1741227392930,72.15143836,148.73,148.66,0.14216157]
[1741227393129,0.38440886,148.72,148.65,1.6592]
[1741227393436,72.15143836,148.74,148.65,26.71967744]
[1741227393612,72.15143836,148.74,148.66,0.14216157]
[1741227393930,0.38440886,148.75,148.66,81.3]
[1741227394314,20.0,148.74,148.66,81.3]
[1741227395235,20.0,148.74,148.67,312.14216157]
[1741227395807,20.0,148.74,148.67,26.86183901]
[1741227396025,20.0,148.74,148.67,26.71967744]
[1741227396305,20.0,148.74,148.68,18.64964886]
[1741227396733,20.0,148.74,148.68,45.3693263]
[1741227397031,0.38440886,148.73,148.67,61.33779395]
[1741227397213,20.0,148.73,148.66,45.3693263]
[1741227397404,20.0,148.73,148.68,45.3693263]
[1741227397607,20.0,148.76,148.66,88.05747139]
[1741227397807,0.38440886,148.75,148.66,61.33779395]
[1741227398007,72.53584722,148.75,148.63,222.55747139]
[1741227398319,72.15143836,148.74,148.64,0.14216157]
[1741227398521,72.53584722,148.73,148.64,0.14216157]
[1741227398717,72.53584722,148.73,148.66,312.0]
[1741227398918,72.15143836,148.72,148.66,312.0]
[1741227399116,72.15143836,148.72,148.63,61.33779395]
[1741227399117,0.38440886,148.71,148.63,61.33779395]
[1741227399323,0.38440886,148.71,148.61,0.03]
[1741227399324,72.57792307,148.7,148.61,0.03]
[1741227399535,0.38440886,148.69,148.61,0.03]
[1741227399921,72.15143836,148.7,148.61,0.03]
[1741227399922,72.15143836,148.7,148.61,45.3993263]
[1741227400105,72.15143836,148.7,148.63,26.71967744]
[1741227400310,72.15143836,148.7,148.64,0.14216157]
[1741227401941,0.38440886,148.75,148.64,241.34928182]
[1741227402120,72.53584722,148.75,148.67,0.14216157]
[1741227402318,20.0,148.72,148.67,0.14216157]
[1741227402739,72.53584722,148.75,148.67,0.14216157]
[1741227403218,20.0,148.72,148.66,18.79181043]
[1741227403413,20.0,148.72,148.66,45.51148787]
[1741227403738,0.033,148.78,148.7,26.86183901]
[1741227403910,0.033,148.78,148.71,18.64964886]
[1741227404311,20.0,148.76,148.72,0.14216157]
[1741227404529,0.033,148.78,148.72,0.14216157]
[1741227405123,0.033,148.78,148.7,61.33779395]
[1741227405124,20.0,148.76,148.71,0.14216157]
[1741227405519,20.0,148.72,148.66,67.97839395]
[1741227406147,20.0,148.71,148.67,0.14216157]
[1741227406346,20.0,148.7,148.65,1.583]
[1741227406650,20.0,148.66,148.63,0.03]
[1741227406822,20.0,148.65,148.63,0.03]
[1741227408743,20.0,148.65,148.64,0.14216157]
[1741227408944,72.15143836,148.72,148.64,0.14216157]
[1741227409158,0.38440886,148.71,148.64,0.14216157]
[1741227410745,72.15143836,148.72,148.64,80.12960438]
[1741227411427,72.15143836,148.72,148.64,56.70937903]
[1741227411624,25.44575772,148.73,148.63,26.89183901]
[1741227411837,91.22757193,148.72,148.63,0.03]
[1741227412043,0.38440886,148.71,148.63,0.03]
[1741227412871,20.0,148.67,148.63,0.03]
[1741227413347,20.0,148.68,148.63,0.03]
[1741227413549,20.0,148.67,148.63,0.03]
[1741227414054,20.0,148.67,148.63,0.0001]
[1741227414055,20.38440886,148.66,148.63,0.0001]
[1741227414243,20.38440886,148.66,148.61,0.0001]
[1741227414244,18.64964886,148.64,148.61,0.0001]
[1741227414422,20.0,148.62,148.61,0.0001]
[1741227416042,72.15143836,148.69,148.61,0.0001]
[1741227416349,20.0,148.66,148.61,0.0001]
[1741227417256,20.0,148.66,148.61,312.0001]
[1741227418434,20.0,148.64,148.61,312.0001]
[1741227418643,20.0,148.62,148.61,0.0001]
[1741227419847,0.38440886,148.65,148.61,0.0001]
[1741227422154,0.42648471,148.64,148.61,0.0001]
[1741227422360,0.38440886,148.63,148.61,0.0001]
[1741227423334,19.03405772,148.63,148.61,0.0001]
[1741227423758,72.15143836,148.68,148.61,0.0001]
[1741227424439,20.0,148.65,148.61,0.0001]
[1741227424638,19.03405772,148.67,148.61,0.0001]
[1741227424639,20.0,148.63,148.61,0.0001]
[1741227425736,20.0,148.62,148.61,0.0001]
[1741227425941,20.0,148.61,148.56,0.03]
[1741227426136,20.0,148.61,148.56,0.0227]
[1741227426137,20.0,148.57,148.56,0.0227]
[1741227427462,72.15143836,148.63,148.56,0.0227]
[1741227428929,19.06705772,148.65,148.56,0.0227]
[1741227428930,91.21849608,148.65,148.56,0.0227]
[1741227429132,72.56884722,148.65,148.56,0.0227]
[1741227430053,18.64964886,148.64,148.56,0.0227]
[1741227430362,18.64964886,148.62,148.56,0.0227]
[1741227430537,0.38440886,148.61,148.56,0.0227]
[1741227430740,18.64964886,148.59,148.56,0.0227]
[1741227430939,0.38440886,148.58,148.56,0.0227]
[1741227431140,20.0,148.57,148.56,0.0227]
[1741227432237,18.64964886,148.57,148.56,0.0227]
[1741227433368,19.07613357,148.57,148.56,0.0227]
[1741227434270,20.0,148.53,148.52,0.03]
[1741227434764,0.38440886,148.55,148.52,0.03]
[1741227435549,0.42648471,148.54,148.52,0.03]
[1741227435744,0.81089357,148.53,148.52,0.03]
[1741227437144,0.38440886,148.53,148.52,0.03]
[1741227437468,18.64964886,148.56,148.52,0.03]
[1741227437667,18.64964886,148.54,148.52,0.03]
[1741227437971,0.28432314,148.52,148.5,0.03]
[1741227438169,0.28432314,148.5,148.46,0.03]
[1741227438379,20.0,148.43,148.41,0.03]
[1741227439052,0.38440886,148.42,148.41,0.03]
[1741227439238,39.31838086,148.42,148.41,0.03]
[1741227440171,39.03405772,148.42,148.41,0.03]
[1741227440549,20.0,148.42,148.41,0.03]
[1741227441756,0.38440886,148.44,148.41,0.03]
[1741227442080,0.38440886,148.47,148.41,0.03]
[1741227442251,80.8,148.5,148.43,1.6109]
[1741227442454,0.38440886,148.54,148.44,0.14216157]
[1741227442781,0.38440886,148.54,148.44,26.86183901]
[1741227442971,19.03405772,148.54,148.44,0.14216157]
[1741227443170,20.0,148.51,148.44,0.14216157]
[1741227443472,20.38440886,148.5,148.44,0.14216157]
[1741227443679,81.18440886,148.53,148.44,19.21829514]
[1741227443853,0.38440886,148.55,148.46,19.21829514]
[1741227444052,20.0,148.53,148.46,180.43797258]
[1741227444595,10.93377484,148.56,148.46,180.43797258]
[1741227445289,20.0,148.53,148.49,0.14216157]
[1741227445492,0.38440886,148.56,148.49,0.14216157]
[1741227445704,20.0,148.54,148.47,0.14216157]
[1741227446590,0.38440886,148.58,148.49,0.14216157]
[1741227446892,0.38440886,148.58,148.5,1.5495]
[1741227447187,18.64964886,148.56,148.5,1.5495]
[1741227447396,0.38440886,148.55,148.5,1.5495]
[1741227447577,0.38440886,148.55,148.49,0.14216157]
[1741227447772,0.42648471,148.54,148.48,6.1655]
[1741227447962,19.03405772,148.53,148.48,6.1655]
[1741227448168,19.03405772,148.53,148.46,1.5546]
[1741227448467,19.07613357,148.52,148.46,1.5846]
[1741227448663,0.42648471,148.5,148.46,0.03]
[1741227448886,19.03405772,148.49,148.46,0.03]
[1741227449282,0.42648471,148.48,148.46,0.03]
[1741227449481,19.03405772,148.47,148.46,0.03]
[1741227449972,19.46054243,148.47,148.46,0.03]
[1741227450493,19.46054243,148.47,148.41,0.03]
[1741227450494,20.0,148.44,148.41,0.03]
[1741227450985,0.38440886,148.43,148.41,0.03]
[1741227451190,39.07613357,148.42,148.41,0.03]
[1741227451880,81.18440886,148.43,148.41,0.03]
[1741227452185,80.8,148.43,148.41,0.03]
[1741227453300,0.38440886,148.42,148.41,0.03]
[1741227453988,20.0,148.43,148.41,0.03]
[1741227454475,20.0,148.43,148.4,0.03]
[1741227455182,0.38440886,148.42,148.4,0.03]
[1741227455603,81.18440886,148.49,148.4,0.03]
[1741227455999,0.38440886,148.49,148.4,0.03]
[1741227456295,19.03405772,148.51,148.4,0.03]
[1741227456489,19.03405772,148.51,148.41,33.04343901]
[1741227456699,19.03405772,148.51,148.41,6.32376157]
[1741227457693,20.0,148.48,148.41,6.32376157]
[1741227457994,19.03405772,148.51,148.41,6.32376157]
[1741227458299,81.08432314,148.52,148.44,0.14216157]
[1741227458300,80.8,148.52,148.44,0.14216157]
[1741227458500,0.033,148.53,148.46,0.14216157]
[1741227458872,0.45948471,148.53,148.46,0.14216157]
[1741227459189,0.38440886,148.52,148.46,0.14216157]
[1741227459774,0.033,148.53,148.46,0.14216157]
[1741227459974,0.42648471,148.52,148.45,1.5807]
[1741227460282,20.0,148.49,148.45,1.5807]
[1741227460992,0.033,148.53,148.46,0.14216157]
[1741227461197,20.033,148.53,148.46,0.14216157]
[1741227461496,20.0,148.49,148.45,1.5807]
[1741227463175,0.38440886,148.48,148.45,1.5807]
[1741227464097,20.0,148.49,148.45,1.5807]
[1741227464402,0.38440886,148.51,148.45,1.5807]
[1741227464403,0.38440886,148.52,148.46,0.14216157]
[1741227464705,20.0,148.48,148.45,1.5807]
[1741227465082,0.38440886,148.5,148.46,0.14216157]
[1741227465302,0.38440886,148.5,148.45,1.5807]
[1741227465677,19.07613357,148.49,148.42,0.14216157]
[1741227465893,0.38440886,148.48,148.41,7.8008]
[1741227466395,0.38440886,148.48,148.41,1.6192]
[1741227466608,0.42648471,148.45,148.4,0.03]
[1741227466774,0.38440886,148.44,148.4,0.03]
[1741227467783,18.64964886,148.44,148.4,0.03]
[1741227467977,0.38440886,148.43,148.4,0.03]
[1741227468394,20.0,148.44,148.4,0.03]
[1741227469694,0.38440886,148.47,148.4,0.03]
[1741227469898,0.38440886,148.49,148.41,0.14216157]
[1741227470084,80.8,148.5,148.41,26.86183901]
[1741227470294,80.8,148.5,148.43,26.86183901]
[1741227470482,10.58236598,148.53,148.46,26.71967744]
[1741227470680,0.033,148.53,148.47,26.86183901]
[1741227471182,20.033,148.53,148.49,0.14216157]
[1741227472108,20.033,148.53,148.52,0.14216157]
[1741227472282,0.033,148.53,148.52,0.14216157]
[1741227474008,0.033,148.53,148.51,312.0]
[1741227474189,0.033,148.53,148.48,0.14216157]
[1741227474810,0.033,148.53,148.47,0.14216157]
[1741227475710,20.033,148.53,148.47,0.14216157]
[1741227476504,0.033,148.53,148.48,26.71967744]
[1741227476702,0.033,148.53,148.51,0.14216157]
[1741227476887,0.033,148.53,148.52,34.53753901]
[1741227477208,0.033,148.53,148.52,403.24691804]
[1741227477422,0.033,148.53,148.52,422.32305161]
[1741227478084,0.38440886,148.63,148.54,0.14216157]
[1741227478291,0.38440886,148.63,148.54,83.57121804]
[1741227478493,20.0,148.61,148.54,83.57121804]
[1741227478819,81.18440886,148.64,148.56,0.14216157]
[1741227479003,80.8,148.64,148.57,0.14216157]
[1741227479202,0.033,148.65,148.57,0.14216157]
[1741227479203,0.033,148.65,148.58,0.14216157]
[1741227480311,0.033,148.65,148.59,0.14216157]
[1741227480490,0.033,148.65,148.6,6.65736157]
[1741227480691,0.033,148.65,148.6,63.3667406]
[1741227481186,0.033,148.65,148.62,0.14216157]
[1741227483195,0.033,148.65,148.62,218.49770275]
[1741227483418,0.033,148.67,148.66,0.56864628]
[1741227483630,0.033,148.67,148.66,102.64735161]
[1741227483832,0.033,148.67,148.66,108.98925161]
[1741227484123,20.0,148.74,148.68,0.28432314]